[Event "German Bundesliga 2022-23"]
[Site "Germany"]
[Date "2022.10.23"]
[Round "2.4"]
[White "Dardha, Daniel"]
[Black "Jovanovic, Zoran"]
[Result "1/2-1/2"]
[ECO "C41"]
[WhiteElo "2610"]
[BlackElo "2519"]
[Annotator "TA"]
[PlyCount "90"]
[EventDate "2022.10.21"]
[EventType "team-tourn"]
[EventCountry "GER"]
[SourceTitle "playchess.com"]
[Source "ChessBase"]
[SourceQuality "1"]
[TimeControl "40/6000+30:3000+30"]

{[%evp 9,90,2,41,36,20,23,33,37,45,8,19,40,49,33,39,30,33,34,41,50,61,63,52,62,52,41,46,0,0,0,0,0,0,0,0,0,0,0,18,18,18,22,26,0,0,0,0,0,0,0,0,0,0,0,0,0,0,0,0,0,0,0,0,0,0,0,0,0,0,0,0,-30,-8,-37,0,0,0,0,0,0,0,0,0]} 1. e4 {[%emt 0:02:13]} d6 {[%emt 0:02:41]} 2. d4 {[%emt 0:00:08]} Nf6 {[%emt 0:00:01]} 3. Nc3 {[%emt 0:00:07]} e5 {[%emt 0:00:02]} 4. Nf3 {[%emt 0:00:12]} Nbd7 {[%emt 0:00:04]} 5. Rg1 {[%emt 0:00:33]} g6 {[%emt 0:11:16]} 6. g4 {[%emt 0:00:07][%cal Bg2g4,Bg4g5][%mdl 32] C41: Philidor Defence.} Bg7 {[%emt 0:00:01]} 7. dxe5 {[%emt 0:00:10]} dxe5 {[%emt 0:04:10]} 8. Be3 {[%emt 0:00:07] White is slightly better.} O-O {[%emt 0:04:36]} 9. Qd3 {[%emt 0:01:46]} c6 {[%emt 0:21:40]} 10. O-O-O {[%emt 0:00:45][%cal Of3e5]} Qe7 {[%emt 0:01:58]} 11. g5 {[%emt 0:04:46]} Nh5 {[%emt 0:05:00][%cal Bf6h5,Bh5f4,Bf4g2][%mdl 32]} 12. Qd6 {[%emt 0:00:57]} Qxd6 {[%emt 0:02:29]} 13. Rxd6 {[%emt 0:00:06]} Re8 {[%emt 0:10:54]} 14. Bh3 {[%emt 0:04:18]} Nf8 {[%emt 0:00:18]} 15. Bxc8 {[%emt 0:00:11] White has more active pieces.} Rexc8 {[%emt 0:00:06] [#]} 16. a4 $146 {[%emt 0:05:46]} ({Predecessor:} 16. Rgd1 b6 17. Nb1 Ne6 18. Nbd2 Bf8 19. Rd7 f6 20. Nc4 Nc5 21. Bxc5 Bxc5 22. R1d2 {1-0 (69) Mateus,A (2334)-Argandona Riveiro,I (2416) Sitges 2019}) 16... Nf4 {[%emt 0:05:00]} 17. h4 {[%emt 0:01:36]} Rc7 {[%emt 0:04:30]} 18. Rgd1 {[%emt 0:07:32]} (18. a5 $14) 18... Ng2 $1 $11 {[%emt 0:01:38]} (18... N8e6 19. Rd7 $14) 19. Rd8 {[%emt 0:34:03]} Rxd8 {[%emt 0:01:08]} 20. Rxd8 {[%emt 0:00:05]} Nxe3 {[%emt 0:00:36]} 21. fxe3 {[%emt 0:00:05]} f6 {[%emt 0:03:07]} 22. Nb1 {[%emt 0:05:28]} fxg5 {[%emt 0:03:57]} (22... Rd7 23. Ra8 $14) 23. hxg5 {[%emt 0:00:25]} h6 {[%emt 0:04:30]} 24. Nbd2 {[%emt 0:02:34]} hxg5 {[%emt 0:04:09]} 25. Nxg5 {[%emt 0:03:12]} Re7 {[%emt 0:03:45]} ({Don't take} 25... Bf6 {[#]} 26. Rxf8+ $1 {[%mdl 512]} Kxf8 27. Ne6+ Ke7 28. Nxc7 $16) 26. Ra8 {[%emt 0:02:55]} Bh6 {[%emt 0:00:58]} 27. Ndf3 {[%emt 0:00:07]} Kg7 {[%emt 0:01:53]} 28. Kd2 {[%emt 0:00:35]} ({Avoid the trap} 28. Rxa7 $2 Nh7 29. Kd2 (29. Ne6+ $2 Kf6 $19) 29... Nxg5 $19) 28... a6 {[%emt 0:02:50]} 29. Rb8 {[%emt 0:04:49]} Bxg5 {[%emt 0:01:11]} 30. Nxg5 {[%emt 0:00:07]} Nh7 {[%emt 0:00:00]} 31. Nxh7 {[%emt 0:02:03]} Kxh7 {[%emt 0:00:04][%mdl 4096] Endgame KR-KR} 32. Ke2 {[%emt 0:00:09]} Kh6 {[%emt 0:01:46]} 33. Kf3 {[%emt 0:00:10]} Kg5 {[%emt 0:02:40]} 34. a5 {[%emt 0:00:08]} Rd7 {[%emt 0:05:10]} 35. b4 {[%emt 0:00:40]} Rf7+ {[%emt 0:02:15]} 36. Ke2 {[%emt 0:00:40]} Re7 {[%emt 0:00:05]} 37. Rg8 {[%emt 0:01:05]} Rd7 {[%emt 0:00:23]} 38. Rf8 {[%emt 0:00:35]} c5 {[%emt 0:01:57][%cal Bc6c5,Bc5c4,Bc4c3][%mdl 32]} 39. b5 {[%emt 0:01:56]} axb5 {[%emt 0:00:11]} 40. Rc8 {[%emt 0:00:04]} c4 {[%emt 0:00:14]} 41. Rc5 {[%emt 0:50:17]} Kf6 {[%emt 0:51:11]} 42. Rxb5 {[%emt 0:05:36] The position is equal.} c3 {[%emt 0:00:30]} 43. Kf3 {[%emt 0:00:26]} Rd2 {[%emt 0:00:00]} 44. Rxb7 {[%emt 0:00:00]} Rxc2 {[%emt 0:00:00]} 45. Rb6+ {[%emt 0:00:00]} Kf7 {[%emt 0:00:00] Weighted Error Value: White=0.05 (flawless) /Black=0.03 (flawless)} 1/2-1/2

[Event "German Bundesliga 2022-23"]
[Site "Germany"]
[Date "2022.10.23"]
[Round "2.4"]
[White "Burg, Twan"]
[Black "Martinovic, Sasa"]
[Result "1/2-1/2"]
[ECO "A17"]
[WhiteElo "2511"]
[BlackElo "2546"]
[Annotator "TA"]
[PlyCount "48"]
[EventDate "2022.10.21"]
[EventType "team-tourn"]
[EventCountry "GER"]
[SourceTitle "playchess.com"]
[Source "ChessBase"]
[SourceQuality "1"]
[TimeControl "40/6000+30:3000+30"]

{[%evp 9,48,3,0,7,0,0,0,4,6,0,10,3,8,14,25,9,11,0,7,7,39,0,0,0,0,-7,-7,-4,-10,-10,-7,0,7,0,0,-9,-4,-1,-14,-16,0]} 1. Nf3 {[%emt 0:00:06]} d5 {[%emt 0:00:07]} 2. e3 {[%emt 0:00:05]} Nf6 {[%emt 0:00:15]} 3. c4 {[%emt 0:00:11]} e6 {[%emt 0:00:13]} 4. Nc3 {[%emt 0:00:10]} b6 {[%emt 0:00:33]} 5. cxd5 {[%emt 0:00:08]} exd5 {[%emt 0:00:04]} 6. g3 {[%emt 0:00:11] A17: English Opening: 1...Nf6 with ...Bb4.} Bd6 {[%emt 0:02:08]} 7. Bg2 {[%emt 0:00:10]} O-O {[%emt 0:02:20]} 8. O-O {[%emt 0:00:06]} Re8 {[%emt 0:01:19]} 9. b3 {[%emt 0:01:16]} Bb7 {[%emt 0:03:46]} 10. Bb2 {[%emt 0:01:08]} Nbd7 {[%emt 0:00:50]} 11. Rc1 {[%emt 0:07:21]} a6 {[%emt 0:00:42] Against Nb5} 12. d3 {[%emt 0:01:43]} Rc8 {[%emt 0:09:51] [#]} 13. a4 $146 {[%emt 0:02:34]} ({Predecessor:} 13. Re1 Bf8 14. Re2 b5 15. d4 Bd6 16. Rec2 Ne4 17. Bh3 f6 18. Ne1 c6 19. Nd3 {1-0 (65) Salgado Lopez,I (2596)-Salinas Herrera,P (2506) Linares 2019}) 13... Bb4 {[%emt 0:17:47]} 14. Ne2 {[%emt 0:03:05]} c5 {[%emt 0:06:55]} 15. d4 {[%emt 0:07:29]} Ne4 {[%emt 0:08:25] The position is equal.} 16. dxc5 {[%emt 0:00:55]} bxc5 {[%emt 0:00:19]} 17. Nc3 {[%emt 0:12:47]} Ndf6 {[%emt 0:02:19]} 18. Nxe4 {[%emt 0:00:36]} Nxe4 {[%emt 0:00:23]} 19. Ne5 {[%emt 0:00:22]} f6 {[%emt 0:15:31]} 20. Nd3 {[%emt 0:03:43]} Qb6 {[%emt 0:00:17]} 21. Nxb4 {[%emt 0:12:34]} Qxb4 {[%emt 0:00:03]} 22. f3 {[%emt 0:01:35]} Ng5 {[%emt 0:01:36]} 23. Bc3 {[%emt 0:04:43]} Qb6 {[%emt 0:00:06]} 24. Re1 {[%emt 0:03:59]} Re7 {[%emt 0:06:35] A balanced but interesting game.  Weighted Error Value: White=0.05 (flawless) /Black=0.04 (flawless)} 1/2-1/2

[Event "German Bundesliga 2022-23"]
[Site "Germany"]
[Date "2022.10.23"]
[Round "2.4"]
[White "Vogel, Roven"]
[Black "Alonso Rosell, Alvar"]
[Result "1/2-1/2"]
[ECO "D02"]
[WhiteElo "2463"]
[BlackElo "2563"]
[Annotator "ChessBase"]
[PlyCount "90"]
[EventDate "2022.10.21"]
[EventType "team-tourn"]
[EventCountry "GER"]
[SourceTitle "playchess.com"]
[Source "ChessBase"]
[SourceQuality "1"]
[TimeControl "40/6000+30:3000+30"]

1. d4 {[%emt 0:00:04]} Nf6 {[%emt 0:00:04]} 2. Nf3 {[%emt 0:00:10]} d5 {[%emt 0:00:16]} 3. Bf4 {[%emt 0:00:25]} e6 {[%emt 0:08:22]} 4. e3 {[%emt 0:00:27]} c5 {[%emt 0:00:04]} 5. Nbd2 {[%emt 0:00:31]} Nc6 {[%emt 0:00:31]} 6. c3 {[%emt 0:00:55]} Nh5 {[%emt 0:01:27]} 7. Bg5 {[%emt 0:00:38]} f6 {[%emt 0:04:19]} 8. Bh4 {[%emt 0:00:07]} g6 {[%emt 0:00:42]} 9. Bd3 {[%emt 0:02:44]} cxd4 {[%emt 0:02:34]} 10. cxd4 {[%emt 0:00:48]} Be7 {[%emt 0:05:53]} 11. Ng1 {[%emt 0:15:51]} O-O {[%emt 0:05:42]} 12. Ne2 {[%emt 0:02:09]} Qb6 {[%emt 0:10:12]} 13. Nb3 {[%emt 0:06:34]} Nb4 {[%emt 0:23:44]} 14. Bb1 {[%emt 0:08:55]} a5 {[%emt 0:00:11]} 15. Nbc1 {[%emt 0:07:59]} Nc6 {[%emt 0:19:50]} 16. Nd3 {[%emt 0:01:47]} Ng7 {[%emt 0:05:20]} 17. O-O {[%emt 0:11:57]} Nf5 {[%emt 0:02:05]} 18. Bg3 {[%emt 0:00:07]} e5 {[%emt 0:03:19]} 19. Nc3 {[%emt 0:11:33]} Rd8 {[%emt 0:02:25]} 20. a3 {[%emt 0:01:31]} Nxg3 {[%emt 0:01:51]} 21. hxg3 {[%emt 0:04:38]} Be6 {[%emt 0:01:53]} 22. Ba2 {[%emt 0:02:10]} Kg7 {[%emt 0:01:02]} 23. Na4 {[%emt 0:02:27]} Qa7 {[%emt 0:00:59]} 24. Rc1 {[%emt 0:15:51]} Bf7 {[%emt 0:00:30]} 25. Re1 {[%emt 0:02:17]} Rac8 {[%emt 0:01:21]} 26. Qb3 {[%emt 0:01:24]} exd4 {[%emt 0:02:39]} 27. Nb6 {[%emt 0:00:28]} Rb8 {[%emt 0:01:17]} 28. e4 {[%emt 0:00:19]} Bb4 {[%emt 0:01:58]} 29. axb4 {[%emt 0:05:35]} Qxb6 {[%emt 0:00:05]} 30. e5 {[%emt 0:04:02]} Nxe5 {[%emt 0:02:27]} 31. Nxe5 {[%emt 0:00:09]} fxe5 {[%emt 0:00:05]} 32. Rxe5 {[%emt 0:00:04]} Re8 {[%emt 0:00:29]} 33. Ree1 {[%emt 0:01:04]} Rxe1+ {[%emt 0:02:47]} 34. Rxe1 {[%emt 0:00:01]} Qxb4 {[%emt 0:00:05]} 35. Qxb4 {[%emt 0:00:35]} axb4 {[%emt 0:00:02]} 36. Rd1 {[%emt 0:00:05]} Re8 {[%emt 0:01:27]} 37. Kf1 {[%emt 0:00:15]} Ra8 {[%emt 0:00:30]} 38. Bb3 {[%emt 0:00:12]} Kf6 {[%emt 0:00:31]} 39. Ke2 {[%emt 0:01:17]} Ke5 {[%emt 0:00:30]} 40. Kd3 {[%emt 0:00:49]} Kd6 {[%emt 0:00:30]} 41. Re1 {[%emt 0:01:57]} Be6 {[%emt 0:09:15]} 42. Kxd4 {[%emt 0:03:36]} h5 {[%emt 0:03:01]} 43. f3 {[%emt 0:14:37]} Bf7 {[%emt 0:01:34]} 44. Kd3 {[%emt 0:04:27]} Be6 {[%emt 0:01:50]} 45. Kd4 {[%emt 0:00:07]} Bf7 {[%emt 0:01:27]} 1/2-1/2

[Event "German Bundesliga 2022-23"]
[Site "Germany"]
[Date "2022.10.23"]
[Round "2.5"]
[White "Dragnev, Valentin"]
[Black "Maiwald, Jens-Uwe"]
[Result "1-0"]
[ECO "E91"]
[WhiteElo "2544"]
[BlackElo "2441"]
[Annotator "TA"]
[PlyCount "61"]
[EventDate "2022.10.21"]
[EventType "team-tourn"]
[EventCountry "GER"]
[SourceTitle "playchess.com"]
[Source "ChessBase"]
[SourceQuality "1"]
[TimeControl "40/6000+30:3000+30"]

{[%evp 16,61,69,59,74,79,68,68,83,82,85,97,153,150,160,139,143,122,124,127,171,153,157,152,142,133,205,207,197,212,206,206,194,202,243,255,255,240,250,264,250,251,246,254,429,432,477,467]} 1. d4 {[%emt 0:00:05]} Nf6 {[%emt 0:00:41]} 2. c4 {[%emt 0:00:08]} g6 {[%emt 0:00:14]} 3. Nc3 {[%emt 0:00:07]} Bg7 {[%emt 0:00:07]} 4. e4 {[%emt 0:00:07]} d6 {[%emt 0:00:09]} 5. Be2 {[%emt 0:00:22]} O-O {[%emt 0:06:39]} 6. Nf3 {[%emt 0:00:20]} c5 {[%emt 0:00:48]} 7. O-O {[%emt 0:03:37]} Nc6 {[%emt 0:04:12]} 8. d5 {[%emt 0:01:12]} Na5 {[%emt 0:00:10]} 9. h3 {[%emt 0:04:51]} e6 {[%emt 0:06:07] E91: King's Indian: Classical: 6 Be2, unusual replies including 6...c5 and 6...Bg4.} 10. Bg5 {[%emt 0:04:21]} h6 {[%emt 0:01:42]} 11. Be3 {[%emt 0:03:23] White is more active.} Re8 {[%emt 0:03:35] [#] White is slightly better.} 12. Qd2 $146 {[%emt 0:02:18]} ({Predecessor:} 12. Nd2 a6 13. a4 Rb8 14. Qc2 exd5 15. cxd5 Bd7 16. Bf4 Bf8 17. Rab1 b5 18. b4 cxb4 19. Rxb4 {0-1 (28) Gschnitzer,O (2460)-Giaccio,A (2465) Val Thorens 1996}) 12... exd5 {[%emt 0:03:54]} 13. exd5 {[%emt 0:00:40]} Ne4 {[%emt 0:13:29]} ({Black should try} 13... Kh7) 14. Nxe4 $16 {[%emt 0:03:44]} Rxe4 {[%emt 0:00:08]} 15. Rac1 {[%emt 0:00:47]} Kh7 {[%emt 0:00:29]} 16. Bd3 {[%emt 0:00:40]} Re8 {[%emt 0:00:16]} 17. Rfe1 {[%emt 0:01:58]} Bd7 {[%emt 0:05:53]} 18. h4 {[%emt 0:03:21][%cal Bh3h4,Bh4h5][%mdl 32]} b6 {[%emt 0:01:34] [#]} 19. h5 $1 {[%emt 0:04:19]} Qf6 {[%emt 0:00:29]} 20. Qc2 {[%emt 0:02:12]} Nb7 {[%emt 0:17:47]} (20... Bg4 $16) 21. Bd2 $18 {[%emt 0:10:01]} Rxe1+ {[%emt 0:00:33]} 22. Rxe1 {[%emt 0:02:20]} ({Don't take} 22. Nxe1 $6 Qxb2 23. hxg6+ fxg6 $16) 22... Re8 {[%emt 0:00:26]} 23. Bc3 {[%emt 0:02:31]} Rxe1+ {[%emt 0:02:47]} 24. Nxe1 {[%emt 0:00:13]} Qg5 {[%emt 0:00:22]} 25. hxg6+ {[%emt 0:00:33]} fxg6 {[%emt 0:00:07]} 26. Nf3 {[%emt 0:00:13]} Qg4 {[%emt 0:14:38]} 27. Bxg7 {[%emt 0:00:45]} Kxg7 {[%emt 0:00:02] [#]} 28. Qc3+ $1 {[%emt 0:02:07]} Kg8 {[%emt 0:01:28]} 29. Qf6 {[%emt 0:05:00]} Be8 {[%emt 0:00:26]} (29... Bf5) 30. b3 {[%emt 0:09:29]} a5 {[%emt 0:03:42]} 31. a4 {[%emt 0:05:26] Black got outplayed after the opening.  Weighted Error Value: White=0.02 (flawless) /Black=0.25 (precise)} ({Weaker is} 31. Qe7 Qd7 32. Qe3 Kg7 $18) 1-0

[Event "German Bundesliga 2022-23"]
[Site "Germany"]
[Date "2022.10.23"]
[Round "2.5"]
[White "Prusikin, Michael"]
[Black "Dgebuadze, Alexandre"]
[Result "1-0"]
[ECO "E11"]
[WhiteElo "2517"]
[BlackElo "2430"]
[Annotator "TA"]
[PlyCount "167"]
[EventDate "2022.10.21"]
[EventType "team-tourn"]
[EventCountry "GER"]
[SourceTitle "playchess.com"]
[Source "ChessBase"]
[SourceQuality "1"]
[TimeControl "40/6000+30:3000+30"]

{[%evp 10,167,21,11,33,35,36,28,49,47,42,40,41,41,52,56,57,0,27,0,57,52,65,64,61,43,63,66,58,51,98,75,119,109,152,145,131,127,116,79,101,106,147,127,124,117,130,89,90,95,104,110,139,127,142,142,220,204,151,54,164,16,41,-67,-60,-62,79,-43,141,123,360,349,281,195,147,146,191,137,145,130,131,124,133,100,155,156,151,146,157,162,165,130,153,131,161,160,193,193,175,175,188,188,235,188,244,229,227,239,309,308,298,308,305,303,286,293,455,444,447,441,433,422,412,401,647,590,879,852,883,859,1011,1041,1004,960,763,745,701,561,781,742,899,891,29978,29979,29984,29985,29984,29982,29982,29983,29983,29981,29981,29982,29984,29985,29985,29986,29986,29987]} 1. d4 {[%emt 0:00:02]} Nf6 {[%emt 0:00:24]} 2. c4 {[%emt 0:00:07]} e6 {[%emt 0:00:05]} 3. Nf3 {[%emt 0:00:07]} Bb4+ {[%emt 0:01:54]} 4. Bd2 {[%emt 0:00:16]} a5 {[%emt 0:00:17]} 5. a3 {[%emt 0:00:07]} Bxd2+ {[%emt 0:00:37]} 6. Qxd2 {[%emt 0:00:05]} Nc6 {[%emt 0:10:30] E11: Bogo-Indian.} 7. Nc3 {[%emt 0:02:44]} d6 {[%emt 0:02:53]} 8. g3 {[%emt 0:12:53]} a4 {[%emt 0:10:27] White has an edge.} 9. Qc2 {[%emt 0:02:35]} Bd7 {[%emt 0:03:49]} 10. Bg2 {[%emt 0:05:40]} O-O {[%emt 0:02:18]} 11. O-O {[%emt 0:05:48]} Na5 {[%emt 0:05:01]} 12. Nd2 {[%emt 0:03:38] [#]} Nc6 $146 {[%emt 0:07:24]} ({Predecessor:} 12... Qe8 13. e4 e5 14. Nd5 Qd8 15. dxe5 dxe5 16. f4 c6 17. Ne3 Be6 18. Nf3 Nb3 19. Rae1 Nd4 20. Nxd4 Qxd4 {0-1 (59) Kanakaris,G (2377)-Antic,D (2523) Paleochora 2009}) 13. Nf3 {[%emt 0:07:26]} Na5 {[%emt 0:00:20]} 14. Nd2 {[%emt 0:00:05]} Nc6 {[%emt 0:00:07]} 15. e3 {[%emt 0:04:36]} Qc8 {[%emt 0:05:32]} 16. f4 {[%emt 0:08:16]} Ne7 {[%emt 0:04:29]} 17. e4 {[%emt 0:09:57] White is much more active.} c5 {[%emt 0:04:38]} 18. d5 {[%emt 0:00:20]} ({Don't play} 18. e5 Ng4 $11) 18... exd5 {[%emt 0:00:22]} 19. cxd5 {[%emt 0:00:14]} c4 {[%emt 0:07:11]} (19... b5 $14) 20. Rae1 {[%emt 0:00:48]} Ra5 {[%emt 0:13:53]} 21. Kh1 {[%emt 0:04:49]} Ng6 {[%emt 0:06:11]} 22. Nf3 {[%emt 0:03:29]} Re8 {[%emt 0:01:12]} 23. Nd4 {[%emt 0:01:22]} h5 {[%emt 0:01:52]} 24. Nf3 {[%emt 0:02:40]} Ra6 {[%emt 0:06:58]} 25. Qd2 {[%emt 0:11:59]} Bg4 {[%emt 0:02:02]} 26. Ng5 {[%emt 0:01:16]} Bd7 {[%emt 0:00:08]} 27. Qd4 {[%emt 0:03:56]} Qc7 {[%emt 0:00:22]} 28. h3 {[%emt 0:01:13]} b5 {[%emt 0:03:06]} 29. Na2 {[%emt 0:02:16]} Raa8 {[%emt 0:03:05]} 30. Qd2 {[%emt 0:03:12]} Rac8 {[%emt 0:01:10]} 31. Nc3 $1 {[%emt 0:02:42][%cal Oe4e5]} Qb8 {[%emt 0:00:55]} 32. Re2 {[%emt 0:01:27]} b4 {[%emt 0:01:28]} (32... Qb6 $16 33. Rfe1 h4) 33. axb4 $18 {[%emt 0:00:04]} Qxb4 {[%emt 0:00:08]} 34. Rfe1 {[%emt 0:00:51]} (34. e5 $1 $16 {[%cal Re5f6]} dxe5 35. fxe5 Rxe5 36. Rxe5 Nxe5 37. Rxf6 gxf6 38. Nge4) 34... Qb8 {[%emt 0:02:03]} ({Black should play} 34... Rb8 $14) 35. Qd4 {[%emt 0:00:14]} (35. Nf3 $18) 35... h4 $1 $11 {[%emt 0:00:08] ...Nh5 is the strong threat.} 36. f5 {[%emt 0:00:59]} (36. e5 $14 dxe5 37. fxe5) 36... Ne5 $15 {[%emt 0:01:14]} 37. gxh4 {[%emt 0:00:07]} Nh5 {[%emt 0:01:37]} (37... Rc7 $1 $15 {keeps the upper hand.}) 38. Qe3 {[%emt 0:05:34]} (38. Rc2 $1 $16) 38... Qb3 $2 {[%emt 0:01:45]} (38... Rc7 $15 {stays ahead.}) 39. Rg1 $1 $16 {[%emt 0:02:17] Threatens to win with Bf3.} a3 $2 {[%emt 0:01:15]} (39... Kf8 $16) 40. Bf3 $18 {[%emt 0:02:16]} Nf6 {[%emt 0:00:40]} 41. bxa3 {[%emt 0:04:57] Black must now prevent Reg2.} Kf8 {[%emt 0:23:24]} 42. a4 {[%emt 0:03:28]} Rb8 {[%emt 0:06:22]} 43. Ra2 {[%emt 0:05:13]} (43. a5 $18) 43... Qb6 $16 {[%emt 0:05:19]} 44. Qxb6 {[%emt 0:01:39]} Rxb6 {[%emt 0:00:04]} 45. Bd1 {[%emt 0:02:21][%cal Bf3d1,Bd1c2,Bc2b1][%mdl 32] Inhibits Rb3.} Nd3 {[%emt 0:03:36]} 46. Bc2 {[%emt 0:16:34]} Ra8 {[%emt 0:03:41]} ({Better is} 46... Nb4 47. Rb2 Nbxd5 48. Rxb6 Nxb6) 47. Rb1 {[%emt 0:04:34]} Rxb1+ {[%emt 0:05:10]} 48. Bxb1 {[%emt 0:00:03]} Bc8 {[%emt 0:00:38]} 49. Kg2 {[%emt 0:03:53]} Ba6 {[%emt 0:00:27]} 50. Kf3 {[%emt 0:00:49]} Ne5+ {[%emt 0:02:04]} 51. Kf4 {[%emt 0:04:15]} Rb8 {[%emt 0:00:42]} 52. Bc2 {[%emt 0:00:30] Against Rb3} Ke7 {[%emt 0:01:34] [#]} 53. Bd1 $1 {[%emt 0:02:26]} Rh8 {[%emt 0:01:01] [#]} 54. Kg3 $1 {[%emt 0:01:09]} Nd3 {[%emt 0:00:27]} 55. Ra1 {[%emt 0:01:03]} Nd7 {[%emt 0:01:32]} (55... Ne5 {was necessary.} 56. Rb1 Nfd7) 56. Rb1 {[%emt 0:00:10]} N7e5 {[%emt 0:01:03]} (56... N3e5 {was worth a try.} 57. Be2 Nc5) 57. Rb6 $18 {[%emt 0:00:40]} Ra8 {[%emt 0:00:16]} 58. Nf3 {[%emt 0:00:22]} Nxf3 {[%emt 0:00:18]} 59. Kxf3 {[%emt 0:00:45]} ({But not} 59. Bxf3 $6 Bc8 60. f6+ gxf6 $18) 59... Ne5+ {[%emt 0:01:01]} 60. Ke3 {[%emt 0:00:13]} Nd7 {[%emt 0:00:05]} 61. Rb2 {[%emt 0:00:14]} Rh8 {[%emt 0:00:31]} 62. h5 {[%emt 0:00:28]} g6 {[%emt 0:00:35]} (62... f6 $142 63. Kd4 Rc8) 63. fxg6 {[%emt 0:03:16]} fxg6 {[%emt 0:00:05]} 64. Bg4 {[%emt 0:00:10]} gxh5 {[%emt 0:01:33]} 65. Bxd7 {[%emt 0:00:03]} Kxd7 {[%emt 0:00:04][%mdl 4096] Endgame KRB-KRN} 66. Rb6 {[%emt 0:00:09]} Bc8 {[%emt 0:00:41]} (66... Ra8 $142 67. Kd4 Bc8) 67. Nb5 {[%emt 0:00:34]} Ke7 {[%emt 0:00:38]} 68. h4 {[%emt 0:00:15]} Bd7 {[%emt 0:01:09]} 69. Nxd6 {[%emt 0:00:51]} c3 {[%emt 0:00:15]} 70. Kd3 {[%emt 0:00:06]} Ra8 {[%emt 0:00:14]} 71. Kxc3 {[%emt 0:00:28]} Rxa4 {[%emt 0:00:06]} 72. Nc4 {[%emt 0:00:21]} Ra1 {[%emt 0:00:15]} 73. Rh6 {[%emt 0:01:06]} Bb5 {[%emt 0:01:04]} 74. Nd6 {[%emt 0:00:16]} Be2 {[%emt 0:00:53]} 75. Nf5+ {[%emt 0:00:19]} Kf7 {[%emt 0:00:24]} 76. e5 {[%emt 0:00:32] White mates.} Bg4 {[%emt 0:00:14]} 77. e6+ {[%emt 0:00:35]} Kg8 {[%emt 0:00:08]} 78. e7 {[%emt 0:01:02][%cal Re7e8]} Ra8 {[%emt 0:00:37]} 79. Rf6 {[%emt 0:01:05]} Bd1 {[%emt 0:01:08]} 80. d6 {[%emt 0:00:54]} Ba4 {[%emt 0:00:07]} 81. Nd4 {[%emt 0:00:28]} Kg7 {[%emt 0:00:23]} 82. Rf8 {[%emt 0:00:16]} Ra6 {[%emt 0:01:12]} 83. e8=Q {[%emt 0:00:26]} Bxe8 {[%emt 0:00:05]} 84. Rxe8 {[%emt 0:00:05] Weighted Error Value: White=0.22 (precise) /Black=0.30} 1-0

[Event "German Bundesliga 2022-23"]
[Site "Germany"]
[Date "2022.10.23"]
[Round "2.5"]
[White "Kovacevic, Aleksandar"]
[Black "Beerdsen, Thomas"]
[Result "1/2-1/2"]
[ECO "B51"]
[WhiteElo "2471"]
[BlackElo "2521"]
[Annotator "TA"]
[PlyCount "66"]
[EventDate "2022.10.21"]
[EventType "team-tourn"]
[EventCountry "GER"]
[SourceTitle "playchess.com"]
[Source "ChessBase"]
[SourceQuality "1"]
[TimeControl "40/6000+30:3000+30"]

{[%evp 11,66,7,12,0,11,0,0,0,0,-7,-11,-18,-16,-54,-29,-40,-34,-41,-13,-21,-9,-16,0,0,0,0,0,0,0,-11,21,25,31,0,18,10,18,12,0,2,12,0,3,0,0,0,0,0,0,0,0,0,0,0,0,0,0]} 1. e4 {[%emt 0:00:07]} c5 {[%emt 0:01:39]} 2. Nf3 {[%emt 0:00:12]} d6 {[%emt 0:00:06]} 3. Bb5+ {[%emt 0:00:48]} Nd7 {[%emt 0:01:05]} 4. d4 {[%emt 0:02:44]} cxd4 {[%emt 0:00:09]} 5. Qxd4 {[%emt 0:00:09]} a6 {[%emt 0:00:41]} 6. Bxd7+ {[%emt 0:00:48]} Bxd7 {[%emt 0:00:11]} 7. c4 {[%emt 0:01:47] B51: Sicilian: Moscow Variation (3 Bb5+) without 3...Bd7.} Nf6 {[%emt 0:01:02]} 8. Nc3 {[%emt 0:00:29]} g6 {[%emt 0:05:40]} 9. O-O {[%emt 0:19:46]} Bg7 {[%emt 0:01:18]} 10. h3 {[%emt 0:03:52]} O-O {[%emt 0:01:44]} 11. Qd3 {[%emt 0:12:58]} b5 {[%emt 0:03:04]} 12. Be3 {[%emt 0:04:54]} Qb8 {[%emt 0:15:27]} 13. Nd2 {[%emt 0:11:38] [#]} Rc8 $146 {[%emt 0:03:29]} ({Predecessor:} 13... Bc6 14. Rfc1 Qb7 15. f3 Nd7 16. Rc2 Rfc8 17. Rac1 Nc5 18. Qe2 b4 19. Nd5 e6 {½-½ (48) Piesik,P (2353)-Sadzikowski,D (2576) Poland 2018}) 14. Rfc1 {[%emt 0:04:32]} Qb7 {[%emt 0:13:39]} (14... b4 $5 {[%cal Rb4c3]} 15. Ne2 a5 $11) 15. Bd4 {[%emt 0:01:01]} Bc6 {[%emt 0:05:21]} 16. b3 {[%emt 0:06:46]} bxc4 {[%emt 0:03:38]} 17. bxc4 {[%emt 0:00:46]} e6 {[%emt 0:02:07][%cal Be7e6,Be6e5][%mdl 32]} 18. Rab1 {[%emt 0:02:43]} Qe7 {[%emt 0:01:37]} 19. Qe3 $1 {[%emt 0:04:57]} Qf8 {[%emt 0:04:49]} 20. Rd1 {[%emt 0:13:53]} e5 {[%emt 0:05:29]} (20... Bh6 {keeps more tension.} 21. Qg3 Nd7 22. Be3 Bg7) 21. Bb6 {[%emt 0:00:32][%cal Bd4b6,Bb6c5,Bc5d6,Bd6e5][%mdl 32]} Nh5 {[%emt 0:00:52]} 22. Nf3 {[%emt 0:06:48]} Rab8 {[%emt 0:03:04] The position is equal.} 23. c5 {[%emt 0:03:03]} dxc5 {[%emt 0:05:42]} 24. Bxc5 {[%emt 0:00:05]} Qe8 {[%emt 0:00:25]} 25. Rxb8 {[%emt 0:01:27]} Rxb8 {[%emt 0:00:04]} 26. Bd6 {[%emt 0:00:08]} Rc8 {[%emt 0:02:45]} 27. Nd5 {[%emt 0:01:51]} Bxd5 {[%emt 0:01:08]} 28. Rxd5 {[%emt 0:00:09]} Nf4 {[%emt 0:01:00]} 29. Rc5 {[%emt 0:04:57]} Rd8 {[%emt 0:04:00]} 30. Bxe5 {[%emt 0:01:01]} Nd3 {[%emt 0:01:50][%cal Rd3e5,Bf4d3,Bd3c5,Bc5e4][%mdl 32]} 31. Bc7 {[%emt 0:00:23]} Nxc5 {[%emt 0:00:42]} 32. Bxd8 {[%emt 0:00:02]} Nxe4 {[%emt 0:00:16]} 33. Bb6 {[%emt 0:00:16]} Qc6 {[%emt 0:01:07] Weighted Error Value: White=0.06 (flawless) /Black=0.06 (flawless)} 1/2-1/2